{"text_format":"1","workbook":"xlsx","n_sheets":2,"sheets":["couleurs","couleurs_fusion"],"not_rendered":{"charts":0,"images":0,"macros":1,"external_links":0,"defined_names":0,"comments":0,"pivot_tables":0},"unopened":[],"bounds":{"document_bytes":16777216,"sheet_cells":100000,"rows_first":2000,"rows_last":500,"rows_between":2000,"halvings":0,"cell_chars":16384,"cell_head_chars":4096},"cells_cut":0,"cells_raw":0,"read":"whole","date_system":"1900"}

{"sheet":"couleurs","index":0,"n_rows":18,"n_cols":8,"rows_kept":18,"cut":false,"hidden":false,"merged":[]}
["couleur",null,"OK","valeur"]
["nombre de cases ayant cette couleur",{"$f":"NbColorSameAs($B$6:$D$11,B1)","v":1},{"$f":"NbColorSameAs($B$6:$D$11,C1)","v":3},3,3,3,4,1]
["nombre de cases ayant cette couleur et ce texte",{"$f":"NbColorAndTextSameAs($B$6:$D$11,B1)","v":1},{"$f":"NbColorAndTextSameAs($B$6:$D$11,C1)","v":1},{"$f":"NbColorAndTextSameAs($B$6:$D$11,D1)","v":2},{"$f":"NbColorAndTextSameAs($B$6:$D$11,E1)","v":3},{"$f":"NbColorAndTextSameAs($B$6:$D$11,F1)","v":3},{"$f":"NbColorAndTextSameAs($B$6:$D$11,G1)","v":4},1]
[]
[]
[]
[null,null,"OK","autre"]
[null,null,null,"valeur"]
[null,null,null,"valeur"]
[]
[]
[]
[]
[" ","Mise en forme conditionelle :"]
[null,4,3]
[null,4,3]
[null,4,3]
[null,3,4]

{"sheet":"couleurs_fusion","index":1,"n_rows":8,"n_cols":8,"rows_kept":8,"cut":false,"hidden":false,"merged":[[5,1,8,1],[7,2,8,2],[7,3,8,3],[9,1,9,2]]}
["couleur",null,"OK","valeur"]
["nombre de cases ayant cette couleur",{"$f":"NbColorSameAs($B$6:$D$11,B1)","v":2},{"$f":"NbColorSameAs($B$6:$D$11,C1)","v":3},{"$f":"NbColorSameAs($B$6:$D$11,D1)","v":2},{"$f":"NbColorSameAs($B$6:$D$11,E1)","v":2},{"$f":"NbColorSameAs($B$6:$D$11,F1)","v":2},{"$f":"NbColorSameAs($B$6:$D$11,G1)","v":4},{"$f":"NbColorSameAs($B$6:$D$11,H1)","v":2}]
["nombre de cases ayant cette couleur et ce texte",{"$f":"NbColorAndTextSameAs($B$6:$D$11,B1)","v":2},{"$f":"NbColorAndTextSameAs($B$6:$D$11,C1)","v":1},{"$f":"NbColorAndTextSameAs($B$6:$D$11,D1)","v":1},{"$f":"NbColorAndTextSameAs($B$6:$D$11,E1)","v":1},{"$f":"NbColorAndTextSameAs($B$6:$D$11,F1)","v":2},{"$f":"NbColorAndTextSameAs($B$6:$D$11,G1)","v":4},{"$f":"NbColorAndTextSameAs($B$6:$D$11,H1)","v":2}]
[]
[]
[]
[null,null,"OK","autre"]
[null,null,"v","valeur"]